bitfinex/quotes_SOLUSD_20240614
["timestamp","ask_amount","ask_price","bid_price","bid_amount"]
[1718361070023,6.2303,148.15,148.1,6.17]
[1718361070224,6.2303,148.15,148.06,27.88625514]
[1718361070225,0.17,148.14,148.06,27.88625514]
[1718361070434,0.68,148.14,148.06,27.88625514]
[1718361070754,45.68,148.14,148.1,6.17]
[1718361071127,45.68,148.14,148.09,6.17]
[1718361071525,45.68,148.14,148.06,27.88625514]
[1718361071742,45.68,148.14,148.09,6.17]
[1718361071925,45.68,148.14,148.06,22.4988]
[1718361071926,0.34,148.14,148.1,6.17]
[1718361072251,0.17,148.14,148.1,6.17]
[1718361072455,45.68,148.14,148.09,6.17]
[1718361072965,51.85,148.14,148.09,6.17]
[1718361074430,45.68,148.14,148.06,20.0]
[1718361074634,45.68,148.14,148.04,29.14898781]
[1718361074635,6.17,148.12,148.05,20.0]
[1718361074938,15.2335,148.11,148.06,6.17]
[1718361075153,15.2335,148.11,148.05,20.0]
[1718361075353,15.2335,148.11,148.06,6.17]
[1718361075537,15.2335,148.11,148.05,20.0]
[1718361075737,15.2335,148.11,148.06,6.17]
[1718361076055,15.2335,148.11,148.07,6.17]
[1718361077559,15.2335,148.11,148.06,6.17]
[1718361077770,15.2335,148.11,148.05,20.0]
[1718361078057,15.2335,148.11,148.06,6.17]
[1718361079055,0.34,148.1,148.06,6.17]
[1718361079561,0.34,148.1,148.04,20.0]
[1718361079765,6.51,148.1,148.04,20.0]
[1718361080060,0.34,148.1,148.05,6.17]
[1718361081448,6.5981,148.1,148.02,2.4995]
[1718361081662,12.7681,148.1,148.05,6.17]
[1718361082041,6.5981,148.1,148.05,6.17]
[1718361082245,6.5981,148.1,148.06,6.17]
[1718361087151,6.5981,148.1,148.03,2.4993]
[1718361087152,6.4281,148.1,148.07,6.17]
[1718361087353,6.2581,148.1,148.07,6.17]
[1718361088363,6.2581,148.1,148.03,2.4993]
[1718361088670,6.2581,148.1,148.06,6.17]
[1718361089480,6.2581,148.1,148.03,20.0]
[1718361089682,12.4281,148.1,148.04,6.17]
[1718361089881,0.34,148.09,148.04,6.17]
[1718361093775,0.34,148.09,148.0,35.22247254]
[1718361093776,6.51,148.09,148.0,35.22247254]
[1718361094080,21.3913,148.07,147.98,2.5002]
[1718361094285,0.51,148.06,147.97,8.7421]
[1718361094577,6.68,148.06,148.0,6.17]
[1718361094786,6.68,148.06,147.97,6.2417]
[1718361094955,51.2922,148.05,147.97,5.54573062]
[1718361095150,51.2922,148.05,148.0,6.17]
[1718361095151,0.17,148.04,148.0,6.17]
[1718361095357,6.2922,148.05,148.0,6.17]
[1718361095870,6.2922,148.05,147.96,34.44387254]
[1718361096073,0.17,148.04,148.0,6.17]
[1718361097455,6.2922,148.05,148.02,6.17]
[1718361097661,15.2213,148.07,148.03,6.17]
[1718361098779,15.2213,148.07,148.04,6.17]
[1718361099965,15.2213,148.07,148.05,6.17]
[1718361100167,15.2213,148.07,147.98,43.8393]
[1718361100168,6.5335,148.09,148.06,6.17]
[1718361103683,16.0957,148.11,148.07,6.17]
[1718361107401,16.0957,148.11,148.08,6.17]
[1718361107580,0.34,148.12,148.08,6.17]
[1718361107788,6.6385,148.13,148.09,6.17]
[1718361108603,0.17,148.13,148.09,6.17]
[1718361108906,0.34,148.13,148.09,6.17]
[1718361112008,0.17,148.13,148.05,28.6691]
[1718361112210,15.5291,148.18,148.12,6.17]
[1718361112390,6.17,148.17,148.06,63.8177]
[1718361112584,6.17,148.16,148.11,6.17]
[1718361112985,6.17,148.17,148.11,6.17]
[1718361113186,6.17,148.16,148.1,6.17]
[1718361113401,0.17,148.15,148.1,6.17]
[1718361113598,0.34,148.15,148.1,6.17]
[1718361116495,0.34,148.15,148.11,6.17]
[1718361116694,45.51,148.16,148.11,6.17]
[1718361118143,0.34,148.16,148.11,6.17]
[1718361118309,0.17,148.16,148.12,6.17]
[1718361119139,0.17,148.16,148.08,2.4985]
[1718361119315,0.17,148.16,148.12,6.17]
[1718361120449,6.3249,148.2,148.13,6.17]
[1718361120608,6.17,148.19,148.13,6.17]
[1718361121119,6.17,148.18,148.13,6.17]
[1718361121930,0.51,148.19,148.13,6.17]
[1718361122234,0.51,148.19,148.1,2.4982]
[1718361122235,45.51,148.19,148.14,6.17]
[1718361122939,0.51,148.19,148.14,6.17]
[1718361124206,0.17,148.19,148.14,6.17]
[1718361124406,15.2231,148.24,148.18,6.17]
[1718361124627,21.3931,148.24,148.18,6.17]
[1718361124834,6.17,148.23,148.17,6.17]
[1718361126049,0.51,148.22,148.18,6.17]
[1718361126825,0.51,148.22,148.19,6.17]
[1718361127740,15.2231,148.24,148.19,6.17]
[1718361128130,15.2231,148.24,148.2,6.17]
[1718361129214,0.17,148.23,148.14,6.6601]
[1718361129425,0.51,148.23,148.19,6.17]
[1718361129627,0.34,148.23,148.19,6.17]
[1718361129829,0.17,148.23,148.19,6.17]
[1718361130030,6.6248,148.25,148.2,6.17]
[1718361130342,0.34,148.24,148.2,6.17]
[1718361130911,0.34,148.24,148.15,20.0]
[1718361130912,0.34,148.23,148.15,20.0]
[1718361131147,6.34,148.21,148.16,6.17]
[1718361131314,0.17,148.2,148.16,6.17]
[1718361133661,0.17,148.21,148.15,20.0]
[1718361133662,45.34,148.21,148.15,20.0]
[1718361133849,0.17,148.2,148.16,6.17]
[1718361135839,6.34,148.2,148.13,20.0]
[1718361136151,6.17,148.18,148.1,14.40055514]
[1718361136490,6.17,148.18,148.06,175.50846278]
[1718361136491,6.34,148.15,148.09,6.17]
[1718361136943,0.17,148.14,148.1,6.17]
[1718361137465,0.34,148.15,148.1,6.17]
[1718361138179,0.17,148.14,148.09,6.17]
[1718361138657,0.17,148.14,148.1,6.17]
[1718361139353,0.34,148.15,148.1,6.17]
[1718361141577,0.17,148.14,148.1,6.17]
[1718361142166,0.17,148.14,148.09,6.17]
[1718361142374,0.17,148.13,148.06,6.4095]
[1718361142687,0.34,148.13,148.09,6.17]
[1718361143688,0.17,148.12,148.09,6.17]
[1718361144201,0.17,148.13,148.1,6.17]
[1718361144491,0.34,148.13,148.1,6.17]
[1718361144660,0.17,148.13,148.1,6.17]
[1718361144865,0.17,148.13,148.07,20.0]
[1718361145066,0.17,148.13,148.09,6.17]
[1718361152996,0.34,148.13,148.09,6.17]
[1718361153306,0.17,148.13,148.09,6.17]
[1718361153476,0.17,148.14,148.09,6.17]
[1718361153678,0.34,148.14,148.09,6.17]
[1718361154181,0.34,148.14,148.1,6.17]
[1718361157916,0.17,148.13,148.09,6.17]
[1718361158132,0.17,148.13,148.08,6.17]
[1718361158133,0.34,148.13,148.08,6.17]
[1718361159624,6.51,148.12,148.06,20.0]
[1718361159828,51.51,148.11,148.02,9.0542]
[1718361159998,0.17,148.1,148.06,6.17]
[1718361160199,0.17,148.1,148.05,6.17]
[1718361161297,0.17,148.1,148.06,6.17]
[1718361162908,0.17,148.1,148.03,2.4994]
[1718361163141,0.17,148.1,148.06,6.17]
[1718361163518,0.17,148.1,148.03,20.0]
[1718361163916,0.17,148.1,148.06,6.17]
[1718361165511,0.17,148.1,148.07,6.17]
[1718361166445,0.17,148.1,148.06,6.17]
[1718361166616,0.17,148.1,148.03,20.0]
[1718361166819,0.17,148.1,148.06,6.17]
[1718361167548,0.17,148.1,148.05,6.17]
[1718361168555,16.5913,148.11,148.08,6.17]
[1718361169210,16.5913,148.11,148.03,20.0]
[1718361169413,16.5913,148.11,148.06,6.17]
[1718361169739,0.17,148.1,148.06,6.17]
[1718361170037,0.51,148.1,148.06,6.17]
[1718361171620,0.51,148.1,148.03,22.4994]
[1718361171815,0.51,148.1,148.06,6.17]
[1718361172507,45.51,148.1,148.03,20.0]
[1718361172714,45.51,148.1,148.05,6.17]
[1718361173919,45.51,148.1,148.03,20.0]
[1718361174129,0.17,148.08,148.03,20.0]
[1718361174315,0.51,148.08,148.03,6.17]
[1718361175556,0.51,148.08,148.01,2.4998]
[1718361175846,45.51,148.08,148.03,6.17]
[1718361177222,45.51,148.08,148.04,6.17]
[1718361180165,45.51,148.08,148.05,6.17]
[1718361180367,6.2451,148.09,148.05,6.17]
[1718361180586,6.0751,148.09,148.05,6.17]
[1718361180806,6.0751,148.09,148.04,6.17]
[1718361180807,0.17,148.08,148.04,6.17]
[1718361180969,0.51,148.08,148.04,6.17]
[1718361181624,0.51,148.08,148.03,6.17]
[1718361182788,0.51,148.08,148.0,27.97382561]
[1718361183003,0.51,148.08,148.03,6.17]
[1718361183205,0.51,148.08,148.04,6.17]
[1718361183499,6.0751,148.09,148.05,6.17]
[1718361184873,0.17,148.1,148.07,6.17]
[1718361186108,0.17,148.1,148.06,6.17]
[1718361188087,0.34,148.1,148.06,6.17]
[1718361188304,0.17,148.08,148.0,25.47402561]
[1718361188517,0.34,148.08,148.03,6.17]
[1718361188800,0.34,148.07,148.03,6.17]
[1718361189575,0.34,148.07,148.02,6.17]
[1718361189801,0.34,148.07,148.03,20.0]
[1718361190294,0.34,148.07,148.03,6.17]
[1718361192179,0.34,148.07,147.99,16.09827254]
[1718361192512,0.34,148.07,148.01,6.17]
[1718361192715,6.51,148.07,148.01,6.17]
[1718361192940,0.17,148.06,148.02,6.17]
[1718361195698,0.17,148.06,148.01,6.17]
[1718361195897,45.34,148.06,148.01,6.17]
[1718361196190,45.34,148.06,147.98,8.05934323]
[1718361196191,0.17,148.05,147.98,8.05934323]
[1718361196515,0.51,148.05,148.01,6.17]
[1718361198321,0.51,148.05,147.99,20.0]
[1718361198488,0.51,148.05,148.01,6.17]
[1718361198890,0.51,148.05,147.99,20.0]
[1718361199190,0.51,148.05,148.01,6.17]
[1718361199594,0.17,148.04,147.99,20.0]
[1718361199809,0.34,148.04,148.01,6.17]
[1718361200388,0.34,148.04,147.99,20.0]
[1718361200586,0.34,148.04,148.0,6.17]
[1718361201517,0.17,148.04,148.01,6.17]
[1718361202397,0.17,148.04,148.02,6.17]
[1718361202923,0.17,148.04,148.01,6.17]
[1718361203443,0.34,148.05,148.01,6.17]
[1718361203598,0.17,148.05,148.01,6.17]
[1718361203928,0.34,148.05,148.01,6.17]
[1718361206101,0.34,148.05,147.98,24.68]
[1718361206301,0.34,148.05,147.99,20.0]
[1718361206499,0.17,148.04,147.99,20.0]
[1718361206807,0.34,148.04,148.0,6.17]
[1718361207000,0.34,148.03,148.0,6.17]
[1718361207200,0.34,148.04,148.0,6.17]
[1718361207504,0.51,148.05,148.0,6.17]
[1718361208121,0.51,148.05,148.01,6.17]
[1718361209434,15.7068,148.06,148.03,6.17]
[1718361209729,6.2801,148.08,148.05,6.17]
[1718361210095,6.2801,148.08,148.04,6.17]
[1718361211826,15.5723,148.1,148.05,6.17]
[1718361212023,6.2967,148.12,148.08,6.17]
[1718361212628,6.2967,148.12,148.09,6.17]
[1718361212830,6.2967,148.12,148.05,24.68]
[1718361213049,6.2967,148.12,148.06,20.0]
[1718361214826,6.2967,148.12,148.07,6.17]
[1718361215055,0.17,148.11,148.07,6.17]
[1718361215561,45.51,148.11,148.07,6.17]
[1718361216459,45.51,148.11,148.06,20.0]
[1718361216757,45.51,148.11,148.02,2.4996]
[1718361216962,0.17,148.1,148.06,6.17]
[1718361217132,0.51,148.1,148.06,6.17]
[1718361217465,0.17,148.09,148.06,6.17]
[1718361217940,0.17,148.09,148.01,22.4997]
[1718361218141,0.51,148.09,148.01,20.0]
[1718361218345,0.51,148.09,148.05,6.17]
[1718361221141,0.51,148.09,148.06,6.17]
[1718361223974,12.6367,148.12,148.07,6.17]
[1718361224269,12.6367,148.12,148.08,6.17]
[1718361224270,6.2967,148.12,148.08,6.17]
[1718361227039,45.51,148.11,148.07,6.17]
[1718361227257,45.51,148.11,148.01,25.38801745]
[1718361227258,0.17,148.1,148.06,6.17]
[1718361228059,0.17,148.1,148.07,6.17]
[1718361228265,0.34,148.11,148.08,6.17]
[1718361228464,6.2967,148.12,148.08,6.17]
[1718361230349,6.2967,148.12,148.03,2.4993]
[1718361230664,6.2967,148.12,148.08,6.17]
[1718361232371,6.2967,148.12,148.05,6.17]
[1718361232661,6.2967,148.12,148.09,6.17]
[1718361232866,6.2967,148.12,148.08,6.17]
[1718361233639,6.2967,148.12,148.06,20.0]
[1718361233878,6.2967,148.12,148.07,6.17]
[1718361235166,0.51,148.11,148.06,6.17]
[1718361235847,0.17,148.1,148.06,6.17]
[1718361236068,6.34,148.1,148.05,6.17]
[1718361236261,45.51,148.09,148.05,6.17]
[1718361236650,45.51,148.09,148.04,6.17]
[1718361237146,45.51,148.09,148.05,6.17]
[1718361238178,0.51,148.09,148.05,6.17]
[1718361239178,0.34,148.09,148.05,6.17]
[1718361239382,0.34,148.09,148.02,2.4996]
[1718361239383,0.17,148.1,148.06,6.17]
[1718361242554,45.51,148.11,148.06,6.17]
[1718361242759,0.51,148.11,148.07,6.17]
[1718361242994,0.34,148.11,148.07,6.17]
[1718361243393,0.34,148.11,148.0,31.92222003]
[1718361243394,6.2967,148.12,148.08,6.17]
[1718361243674,6.2967,148.12,148.09,6.17]
[1718361245186,6.2967,148.12,148.08,6.17]
[1718361246969,6.2967,148.12,148.05,24.68]
[1718361247160,6.2967,148.12,148.07,6.17]
[1718361247576,0.17,148.11,148.07,6.17]
[1718361247888,0.51,148.11,148.07,6.17]
[1718361248080,0.51,148.11,148.06,6.17]
[1718361252464,0.34,148.11,148.06,6.17]
[1718361252664,0.34,148.11,148.07,6.17]
[1718361254096,0.34,148.1,148.0,21.92232003]
[1718361254292,0.34,148.1,148.05,6.17]
[1718361255498,0.34,148.1,148.06,6.17]
[1718361255794,0.34,148.1,148.05,6.17]
[1718361255987,0.34,148.1,148.01,2.4998]
[1718361256195,0.34,148.1,148.05,6.17]
[1718361256583,15.2154,148.09,148.05,6.17]
[1718361256891,15.2154,148.09,148.0,15.86092003]
[1718361257210,0.68,148.08,148.01,20.0]
[1718361257384,45.68,148.08,148.03,6.17]
[1718361259490,0.34,148.08,148.04,6.17]
[1718361259694,15.2154,148.09,148.04,6.17]
[1718361260104,15.2154,148.09,148.05,6.17]
[1718361263589,15.2154,148.09,148.06,6.17]
[1718361264182,15.2154,148.09,148.07,6.17]
[1718361265105,15.2154,148.09,148.06,6.17]
[1718361265486,15.2154,148.09,148.01,22.4997]
[1718361265689,15.2154,148.09,148.06,6.17]
[1718361267094,15.2154,148.09,148.01,22.4997]
[1718361267286,15.2154,148.09,148.06,6.17]
[1718361273187,15.2154,148.09,148.01,22.4997]
[1718361273518,15.2154,148.09,148.05,6.17]
[1718361274791,15.2154,148.09,148.01,22.4998]
[1718361275004,45.34,148.08,148.03,6.17]
[1718361275192,51.85,148.08,148.02,6.17]
[1718361275395,58.3522,148.08,148.02,6.17]
[1718361278304,58.3522,148.08,148.03,6.17]
[1718361278714,58.3522,148.08,147.99,13.68156176]
[1718361278924,58.3522,148.08,148.02,6.17]
[1718361279305,0.17,148.06,148.02,6.17]
[1718361279509,45.68,148.06,147.99,8.21331639]
[1718361279720,0.51,148.06,148.01,6.17]
[1718361279923,0.17,148.05,148.01,6.17]
[1718361282493,51.34,148.05,147.96,24.0400051]
[1718361282698,15.7705,148.04,148.0,6.17]
[1718361283735,15.7705,148.04,147.96,24.0400051]
[1718361284021,15.7705,148.04,148.0,6.17]
[1718361284520,15.7705,148.04,147.99,6.17]
[1718361285914,6.5104,148.03,147.97,20.0]
[1718361286123,6.5104,148.03,147.99,6.17]
[1718361286422,6.5104,148.03,147.97,20.0]
[1718361286604,6.5104,148.03,147.99,6.17]
[1718361289001,0.17,148.02,147.97,20.0]
[1718361289200,6.68,148.02,147.93,15.14443751]
[1718361289511,0.17,148.01,147.97,6.17]
[1718361289711,0.17,148.01,147.94,20.0]
[1718361289938,0.17,148.01,147.97,6.17]
[1718361291310,0.17,148.01,147.98,6.17]
[1718361291507,0.51,148.02,147.98,6.17]
[1718361291820,6.3404,148.03,148.0,6.17]
[1718361292028,0.17,148.02,148.0,6.17]
[1718361292916,6.3404,148.03,148.0,6.17]
[1718361293111,6.3404,148.03,147.95,2.5007]
[1718361293423,6.3404,148.03,148.0,6.17]
[1718361295556,16.1105,148.04,147.95,2.5007]
[1718361295557,15.7705,148.04,148.01,6.17]
[1718361296154,15.7705,148.04,148.0,6.17]
[1718361296661,15.7705,148.04,147.99,6.17]
[1718361296960,15.7705,148.04,148.0,6.17]
[1718361297629,15.7705,148.04,147.99,6.17]
[1718361300155,0.51,148.03,147.94,22.5009]
[1718361300331,0.17,148.02,147.99,6.17]
[1718361301935,0.17,148.02,148.0,6.17]
[1718361304637,0.17,148.02,147.98,6.17]
[1718361305159,0.17,148.02,147.94,20.0]
[1718361305368,0.17,148.01,147.97,6.17]
[1718361305545,0.51,148.01,147.97,6.17]
[1718361306260,0.17,148.0,147.96,6.17]
[1718361306558,0.51,148.0,147.95,6.17]
[1718361309636,0.51,148.0,147.96,6.17]
[1718361310261,15.9059,147.99,147.93,3.58353611]
[1718361310456,0.17,147.98,147.95,6.17]
[1718361311539,15.7359,147.99,147.96,6.17]
[1718361315059,0.17,147.98,147.93,23.58353611]
[1718361315255,0.34,147.98,147.95,6.17]
[1718361316537,15.7359,147.99,147.93,23.58353611]
[1718361316750,15.7359,147.99,147.96,6.17]
[1718361317643,15.7359,147.99,147.95,6.17]
[1718361318042,15.7359,147.99,147.96,6.17]
[1718361324394,15.7359,147.99,147.97,6.17]
[1718361324547,6.2309,148.02,147.98,6.17]
[1718361325786,5.2309,148.02,147.98,6.17]
[1718361329467,5.2309,148.02,147.99,6.17]
[1718361332288,5.2309,148.02,147.93,23.58353611]
[1718361332289,0.17,148.01,147.93,23.58353611]
[1718361332590,0.17,148.01,147.97,6.17]
[1718361333890,0.34,148.01,147.93,26.08463611]
[1718361334086,0.34,148.0,147.96,6.17]
[1718361334491,0.17,148.01,147.96,6.17]
[1718361334674,0.17,148.01,147.93,26.08463611]
[1718361334675,0.34,148.01,147.97,6.17]
[1718361339780,0.34,148.01,147.93,26.08463611]
[1718361339997,0.34,148.01,147.97,6.17]
[1718361340611,5.2309,148.02,147.99,6.17]
[1718361341997,15.0755,148.04,148.01,6.17]
[1718361342280,15.0755,148.04,148.02,6.17]
[1718361342484,6.584,148.06,148.02,6.17]
[1718361344800,6.584,148.06,148.04,6.17]
[1718361346606,6.584,148.06,148.03,6.17]
[1718361348896,0.34,148.07,148.03,6.17]
[1718361349303,15.1174,148.08,148.05,6.17]
[1718361349502,15.1174,148.08,147.99,2.5]
[1718361349503,15.1174,148.08,147.99,6.038]
[1718361349825,15.1174,148.08,148.07,6.17]
[1718361349982,15.1174,148.08,148.02,2.4995]
[1718361349983,15.1174,148.08,148.06,6.17]
[1718361350405,6.4852,148.09,148.06,6.17]
[1718361354224,6.4852,148.09,148.0,68.92871639]
[1718361354388,6.4852,148.09,148.05,6.17]
[1718361355411,6.4852,148.09,148.0,68.75871639]
[1718361355596,6.4852,148.09,148.0,26.25861639]
[1718361355910,6.4852,148.09,148.04,6.17]
[1718361357595,6.4852,148.09,148.05,6.17]
[1718361358215,5.4852,148.09,148.05,6.17]
[1718361359411,6.51,148.08,147.96,26.77305014]
[1718361359586,51.85,148.08,148.02,6.17]
[1718361359793,0.68,148.08,148.0,2.4999]
[1718361360006,0.51,148.08,148.04,6.17]
[1718361361423,0.51,148.08,148.03,6.17]
[1718361362224,0.51,148.08,148.04,6.17]
[1718361362225,0.17,148.08,148.04,6.17]
[1718361362433,5.4852,148.09,148.05,6.17]
[1718361364414,5.4852,148.09,148.06,6.17]
[1718361366035,0.34,148.1,148.06,6.17]
[1718361366339,15.664,148.11,148.07,6.17]
[1718361366634,2.4986,148.08,148.07,6.17]
[1718361372221,15.664,148.11,148.01,18.5775]
[1718361372418,0.17,148.1,148.07,6.17]
[1718361372723,15.664,148.11,148.05,6.17]
[1718361372926,6.6032,148.13,148.09,6.17]
[1718361373105,21.9369,148.15,148.1,6.17]
[1718361373303,15.7669,148.15,148.1,6.17]
[1718361373708,21.9369,148.15,148.06,20.0]
[1718361374024,21.9369,148.15,148.09,6.17]
[1718361374333,45.68,148.14,148.09,6.17]
[1718361374514,45.68,148.14,148.08,6.17]
[1718361374724,51.85,148.14,148.08,6.17]
[1718361375744,51.85,148.14,148.09,6.17]
[1718361378211,45.68,148.14,148.09,6.17]
[1718361379235,45.68,148.14,148.1,6.17]
[1718361379642,45.34,148.14,148.1,6.17]
[1718361379833,45.34,148.14,148.11,6.17]
[1718361380034,15.7669,148.15,148.11,6.17]
[1718361383214,15.7669,148.15,148.1,6.17]
[1718361384464,0.34,148.14,148.05,52.80300601]
[1718361384635,0.34,148.13,148.08,6.17]
[1718361386429,0.34,148.13,148.05,27.98780601]
[1718361386430,0.34,148.13,148.09,6.17]
[1718361387249,0.34,148.13,148.1,6.17]
[1718361387535,45.34,148.14,148.1,6.17]
[1718361392635,45.34,148.14,148.05,48.99680601]
[1718361392952,45.34,148.14,148.06,20.0]
[1718361395569,45.34,148.14,148.06,20.0]
[1718361396268,43.84,148.14,148.06,20.0]
[1718361397660,15.7669,148.15,148.11,6.17]
[1718361397871,15.7669,148.15,148.06,20.0]
[1718361397872,15.7669,148.15,148.12,6.17]
[1718361398170,15.7669,148.15,148.11,6.17]
[1718361401376,15.7669,148.15,148.06,30.71221639]
[1718361401584,15.7669,148.15,148.11,6.17]
[1718361404174,0.17,148.14,148.06,28.21331639]
[1718361404379,45.68,148.14,148.09,6.17]
[1718361408086,45.68,148.14,148.05,48.99680601]
[1718361408291,45.68,148.14,148.09,6.17]
[1718361411074,45.68,148.14,148.1,6.17]
[1718361413160,45.68,148.14,148.09,6.17]
[1718361415390,15.7669,148.15,148.12,6.17]
[1718361418091,6.5211,148.17,148.13,6.17]
[1718361425816,6.5211,148.17,148.09,2.4984]
[1718361425985,6.5211,148.17,148.13,6.17]
[1718361426486,6.5211,148.17,148.08,22.4985]
[1718361426690,6.5211,148.17,148.12,6.17]
[1718361426997,45.0,148.16,148.08,22.4985]
[1718361427187,45.0,148.16,148.08,20.0]
[1718361427407,6.34,148.15,148.08,20.0]
[1718361427612,45.0,148.14,148.09,6.17]
[1718361428120,0.17,148.12,148.07,6.17]
[1718361428287,45.17,148.12,148.07,6.17]
[1718361430613,0.17,148.1,148.03,16.09957153]
[1718361430914,45.17,148.1,148.05,6.17]
[1718361431593,45.17,148.1,148.03,16.09957153]
[1718361431795,45.17,148.1,148.06,6.17]
[1718361432614,45.17,148.1,148.03,16.09957153]
[1718361432800,45.17,148.1,148.06,6.17]
[1718361433615,45.17,148.1,148.07,6.17]
[1718361435390,22.912,148.11,148.08,6.17]
[1718361435593,22.912,148.11,148.04,2.4992]
[1718361435792,22.912,148.11,148.08,6.17]
[1718361437523,22.912,148.11,148.07,6.17]
[1718361438508,22.912,148.11,148.03,16.09957153]
[1718361438733,45.0,148.1,148.04,20.0]
[1718361438908,45.0,148.1,148.06,6.17]
[1718361440525,45.0,148.1,148.04,20.0]
[1718361440707,45.0,148.1,148.06,6.17]
[1718361441138,45.0,148.1,148.03,20.0]
[1718361441429,45.0,148.1,148.06,6.17]
[1718361444022,22.912,148.11,148.03,20.0]
[1718361444213,22.912,148.11,148.04,2.4992]
[1718361444402,22.912,148.11,148.08,6.17]
[1718361446553,15.5906,148.14,148.1,6.17]
[1718361447011,15.5906,148.14,148.07,2.4988]
[1718361447214,15.5906,148.14,148.11,6.17]
[1718361447738,45.0,148.13,148.11,6.17]
[1718361449507,45.0,148.13,148.05,24.68]
[1718361449710,0.17,148.11,148.06,20.0]
[1718361450020,0.17,148.11,148.06,6.17]
[1718361450021,45.34,148.11,148.06,6.17]
[1718361451212,45.34,148.11,148.03,8.21331639]
[1718361451426,45.34,148.11,148.06,6.17]
[1718361456847,45.34,148.11,148.07,6.17]
[1718361457445,0.34,148.11,148.07,6.17]
[1718361458347,0.34,148.11,148.02,24.44365414]
[1718361458527,0.17,148.09,148.04,6.17]
[1718361458737,45.34,148.09,148.04,6.17]
[1718361460046,0.34,148.08,148.03,20.0]
[1718361460254,0.34,148.08,148.04,6.17]
[1718361461651,0.34,148.08,148.0,22.4999]
[1718361461945,0.34,148.07,148.03,6.17]
[1718361462246,0.34,148.08,148.04,6.17]
[1718361469247,0.34,148.08,148.03,6.17]
[1718361470354,0.17,148.07,147.98,24.36361639]
[1718361470574,0.17,148.05,148.0,6.17]
[1718361470874,45.68,148.05,147.96,2.5005]
[1718361471031,45.68,148.05,148.0,6.17]
[1718361471439,45.68,148.05,148.01,6.17]
[1718361471639,45.68,148.05,148.02,6.17]